bitfinex/quotes_SOLUSD_20250901
["timestamp","ask_amount","ask_price","bid_price","bid_amount"]
[1756752570541,0.03,199.37,199.36,144.84376311]
[1756752570742,0.03,199.37,199.36,183.56376311]
[1756752573667,0.03,199.37,199.36,146.85356011]
[1756752573970,0.03,199.37,199.36,185.55356011]
[1756752574972,0.03,199.39,199.37,13.59559401]
[1756752575271,0.03,199.39,199.38,57.02926656]
[1756752575476,0.03,199.39,199.38,143.00481475]
[1756752575649,0.03,199.39,199.38,146.73537768]
[1756752575855,0.03,199.41,199.38,146.73537768]
[1756752575856,0.03,199.41,199.4,13.59559401]
[1756752576075,0.03,199.41,199.4,61.261334]
[1756752576377,0.03,199.41,199.4,61.951334]
[1756752576750,0.03,199.41,199.4,63.960728]
[1756752576941,0.03,199.41,199.4,68.97577313]
[1756752577147,0.03,199.46,199.42,13.59559401]
[1756752577347,0.03,199.46,199.42,137.29916596]
[1756752577571,0.03,199.46,199.42,137.48771175]
[1756752577885,0.03,199.46,199.42,139.49700475]
[1756752578753,0.03,199.46,199.42,115.85700475]
[1756752578953,0.03,199.46,199.42,144.51154692]
[1756752579375,0.03,199.46,199.42,105.81154692]
[1756752579554,0.03,199.46,199.42,144.51154692]
[1756752585477,0.71,199.46,199.42,143.82154692]
[1756752585786,0.68,199.45,199.42,141.81225392]
[1756752585965,0.68,199.45,199.42,103.11225392]
[1756752586277,0.03,199.46,199.42,103.11225392]
[1756752586278,0.68,199.44,199.42,103.11225392]
[1756752586473,0.68,199.44,199.42,141.81225392]
[1756752587384,0.03,199.45,199.42,141.81225392]
[1756752588486,0.68,199.44,199.42,141.81225392]
[1756752589687,0.03,199.45,199.42,103.11225392]
[1756752589891,0.03,199.45,199.42,141.81225392]
[1756752590285,0.03,199.45,199.42,142.50225392]
[1756752591470,0.03,199.45,199.42,141.81225392]
[1756752591877,0.03,199.45,199.42,103.11225392]
[1756752592076,0.71,199.45,199.42,141.79225392]
[1756752592271,0.03,199.45,199.42,141.79225392]
[1756752593492,0.03,199.45,199.42,136.77771175]
[1756752593694,0.03,199.45,199.42,142.48225392]
[1756752594702,0.71,199.45,199.42,141.79225392]
[1756752595792,0.71,199.43,199.42,13.59559401]
[1756752595972,0.71,199.43,199.42,52.27559401]
[1756752596477,0.03,199.43,199.42,52.27559401]
[1756752598180,0.71,199.43,199.42,52.27559401]
[1756752598388,0.71,199.43,199.42,13.59559401]
[1756752598598,0.71,199.43,199.42,52.27559401]
[1756752599199,0.71,199.43,199.42,13.59559401]
[1756752599383,0.71,199.43,199.42,52.27559401]
[1756752600288,5.72429072,199.43,199.42,13.59559401]
[1756752600476,5.72429072,199.43,199.42,38.68]
[1756752601504,0.71,199.43,199.42,52.27559401]
[1756752601811,0.03,199.43,199.42,52.27559401]
[1756752604006,0.71,199.43,199.42,52.27559401]
[1756752604212,5.72429072,199.43,199.38,13.59559401]
[1756752604390,4.04819747,199.42,199.38,13.59559401]
[1756752604589,0.68,199.41,199.33,0.12]
[1756752604791,0.68,199.41,199.36,38.68]
[1756752605108,0.68,199.4,199.39,0.12]
[1756752606126,5.69504513,199.4,199.39,0.12]
[1756752606489,9.0632426,199.4,199.39,0.12]
[1756752606893,11.0741516,199.4,199.39,0.12]
[1756752609400,26.0,199.38,199.37,0.12]
[1756752609717,26.0,199.37,199.35,0.12]
[1756752609918,3.36819747,199.36,199.35,0.12]
[1756752610315,4.04819747,199.36,199.35,0.12]
[1756752610996,6.05971347,199.36,199.35,0.12]
[1756752611529,8.38424883,199.36,199.35,0.12]
[1756752611698,5.01605136,199.36,199.35,0.12]
[1756752612726,31.01579976,199.37,199.35,0.12]
[1756752613023,2.011111,199.38,199.35,0.79]
[1756752613233,0.03,199.43,199.36,52.33559401]
[1756752613394,5.0146032,199.42,199.38,13.59559401]
[1756752613594,5.6946032,199.42,199.38,13.59559401]
[1756752614010,0.68,199.41,199.38,38.76]
[1756752614413,5.0146032,199.42,199.38,38.76]
[1756752615001,5.0146032,199.42,199.39,0.67]
[1756752615332,5.04429497,199.43,199.39,0.67]
[1756752616005,5.04429497,199.43,199.38,38.76]
[1756752616323,5.04429497,199.43,199.39,0.67]
[1756752616629,5.04429497,199.43,199.4,0.67]
[1756752616821,0.03,199.43,199.4,0.67]
[1756752617056,0.03,199.43,199.41,0.67]
[1756752617340,0.03,199.43,199.42,13.59559401]
[1756752617498,0.03,199.43,199.39,13.59559401]
[1756752617900,0.03,199.43,199.39,14.26559401]
[1756752618130,0.68,199.42,199.38,13.59559401]
[1756752618297,0.68,199.41,199.35,52.51559401]
[1756752618496,0.68,199.4,199.35,52.51559401]
[1756752618940,5.01529665,199.39,199.35,52.51559401]
[1756752619120,5.01529665,199.39,199.35,53.18559401]
[1756752619598,5.01529665,199.39,199.35,0.12]
[1756752619800,0.68,199.38,199.35,38.92]
[1756752620043,5.01529665,199.39,199.35,38.92]
[1756752620534,5.69529665,199.39,199.35,38.92]
[1756752620903,5.01504513,199.4,199.35,38.92]
[1756752621104,5.69504513,199.4,199.35,39.59]
[1756752623929,5.69504513,199.4,199.35,38.92]
[1756752624135,5.69504513,199.4,199.36,0.67]
[1756752624817,5.01504513,199.4,199.36,0.67]
[1756752626937,5.69504513,199.4,199.35,38.92]
[1756752627148,5.69504513,199.4,199.35,39.59]
[1756752627354,5.69504513,199.4,199.35,38.92]
[1756752627516,5.01504513,199.4,199.36,0.67]
[1756752627717,5.69504513,199.4,199.35,38.92]
[1756752628039,5.69504513,199.4,199.35,39.59]
[1756752628348,5.69504513,199.4,199.36,0.67]
[1756752628721,5.01504513,199.4,199.36,0.67]
[1756752629557,5.69504513,199.4,199.36,0.67]
[1756752629847,5.69504513,199.4,199.35,38.92]
[1756752630017,5.01504513,199.4,199.35,39.59]
[1756752630218,5.01504513,199.4,199.35,0.12]
[1756752630219,0.68,199.39,199.35,0.12]
[1756752630426,26.0,199.37,199.35,0.12]
[1756752630647,0.68,199.36,199.35,0.12]
[1756752631031,26.0,199.37,199.35,0.12]
[1756752631443,26.68,199.37,199.35,0.12]
[1756752631650,28.691313,199.37,199.35,0.12]
[1756752631837,5.01605136,199.36,199.35,0.12]
[1756752633726,7.02736536,199.36,199.35,0.12]
[1756752634221,5.01605136,199.36,199.35,0.12]
[1756752635351,2.011313,199.37,199.36,13.59559401]
[1756752635541,2.011313,199.37,199.36,14.25559401]
[1756752635947,5.04432631,199.43,199.36,18.48771175]
[1756752636128,31.04432631,199.43,199.38,13.59559401]
[1756752636451,31.04432631,199.43,199.36,13.59559401]
[1756752636621,3.36283139,199.42,199.38,0.66]
[1756752636822,5.04432631,199.43,199.39,0.66]
[1756752637047,0.67,199.42,199.36,53.03559401]
[1756752637265,5.01479364,199.41,199.37,0.66]
[1756752637756,5.01479364,199.41,199.38,0.66]
[1756752638050,3.36460657,199.4,199.37,0.66]
[1756752639240,5.68529665,199.39,199.35,0.12]
[1756752639439,3.36460657,199.38,199.35,0.12]
[1756752639638,4.03460657,199.38,199.35,0.12]
[1756752639947,0.67,199.37,199.35,0.12]
[1756752640455,5.01605136,199.36,199.35,0.12]
[1756752640627,9.05065793,199.36,199.35,0.12]
[1756752641626,35.05065793,199.36,199.35,0.12]
[1756752641833,34.38065793,199.36,199.35,0.12]
[1756752642049,36.39207293,199.36,199.35,0.12]
[1756752642436,34.38065793,199.36,199.35,0.12]
[1756752642638,10.39197193,199.36,199.35,0.12]
[1756752643527,37.06197193,199.36,199.35,0.12]
[1756752643731,37.06197193,199.36,199.33,0.12]
[1756752643732,26.0,199.34,199.33,0.12]
[1756752644031,29.36460657,199.34,199.33,0.12]
[1756752644360,30.03460657,199.34,199.33,0.12]
[1756752644563,34.24208456,199.34,199.33,0.12]
[1756752644725,30.03460657,199.34,199.33,0.12]
[1756752644929,39.25863919,199.34,199.33,0.12]
[1756752646146,39.25863919,199.34,199.32,1e-08]
[1756752646346,46.42210159,199.33,199.31,1e-08]
[1756752646657,7.58210159,199.32,199.31,1e-08]
[1756752646846,8.25210159,199.32,199.31,1e-08]
[1756752647363,13.26940019,199.32,199.31,1e-08]
[1756752649370,77.43940019,199.32,199.31,1e-08]
[1756752649551,38.59940019,199.32,199.31,1e-08]
[1756752649748,40.61142219,199.32,199.31,1e-08]
[1756752651170,36.39368656,199.32,199.31,1e-08]
[1756752652774,10.39368656,199.32,199.31,0.66000001]
[1756752652933,8.38166456,199.32,199.31,0.66000001]
[1756752653136,34.38166456,199.32,199.31,0.66000001]
[1756752654257,3.36460657,199.32,199.31,0.66000001]
[1756752654563,26.0,199.34,199.31,0.66000001]
[1756752654732,3.36460657,199.33,199.31,0.66000001]
[1756752654931,3.36460657,199.34,199.31,0.66000001]
[1756752655135,3.36460657,199.34,199.32,13.59559401]
[1756752655334,3.36460657,199.34,199.33,0.66]
[1756752655933,3.36460657,199.34,199.33,14.25559401]
[1756752656135,3.36460657,199.35,199.33,14.25559401]
[1756752656332,3.36460657,199.35,199.34,0.66]
[1756752656653,5.01554819,199.38,199.34,0.66]
[1756752656855,3.36998416,199.37,199.34,0.66]
[1756752657070,3.36998416,199.38,199.34,0.66]
[1756752658268,5.01579976,199.37,199.35,0.66]
[1756752658471,5.01579976,199.37,199.32,13.59559401]
[1756752658638,5.01579976,199.37,199.36,0.66]
[1756752658836,8.38610294,199.37,199.36,0.66]
[1756752663254,3.37030318,199.37,199.36,0.66]
[1756752663571,5.01554501,199.39,199.36,0.66]
[1756752663572,3.37030318,199.38,199.36,0.66]
[1756752664072,8.38593353,199.38,199.33,0.66]
[1756752664281,3.37030318,199.37,199.33,0.66]
[1756752664575,5.01605136,199.36,199.34,0.66]
[1756752664781,5.01605136,199.36,199.31,13.59559402]
[1756752664782,3.37272751,199.35,199.31,13.59559402]
[1756752664952,3.37272751,199.35,199.32,0.72]
[1756752665279,3.37272751,199.35,199.33,0.72]
[1756752666507,8.38909954,199.35,199.33,0.72]
[1756752666669,3.37272751,199.34,199.33,0.72]
[1756752668671,3.37272751,199.34,199.31,1e-08]
[1756752668672,9.06928214,199.34,199.31,1e-08]
[1756752668876,3.37272751,199.33,199.31,1e-08]
[1756752670690,5.01705799,199.32,199.31,1e-08]
[1756752670992,8.3897855,199.32,199.31,1e-08]
[1756752671178,3.37272751,199.32,199.31,0.72000001]
[1756752671385,8.38949931,199.34,199.31,0.72000001]
[1756752671585,3.37272751,199.33,199.32,0.72]
[1756752672994,3.37272751,199.33,199.32,14.31559401]
[1756752673301,0.03,199.37,199.33,13.59559401]
[1756752673482,0.03,199.37,199.35,13.59559401]
[1756752673872,0.03,199.37,199.36,0.72]
[1756752674277,3.40431657,199.37,199.36,0.72]
[1756752674496,0.03,199.37,199.36,14.31559401]
[1756752674960,0.03,199.37,199.36,23.56376311]
[1756752676283,0.03,199.37,199.36,13.59559401]
[1756752676588,0.03,199.37,199.36,14.31559401]
[1756752678295,0.03,199.37,199.36,53.15559401]
[1756752678592,0.03,199.37,199.36,57.38771175]
[1756752678996,0.03,199.37,199.36,62.40376311]
[1756752679399,0.03,199.37,199.36,64.91556924]
[1756752680076,0.03,199.37,199.36,145.21556924]
[1756752680274,0.03,199.37,199.36,144.71396411]
[1756752681562,3.02431657,199.45,199.39,13.59559401]
[1756752681885,3.02431657,199.45,199.41,13.59559401]
[1756752682494,3.02431657,199.45,199.42,0.72]
[1756752682681,3.02431657,199.45,199.44,13.59559401]
[1756752682890,5.04356833,199.46,199.44,13.59559401]
[1756752682891,0.03,199.46,199.44,14.31559401]
[1756752683075,0.03,199.46,199.45,14.31559401]
[1756752683282,0.03,199.46,199.45,13.59559401]
[1756752683963,0.03,199.46,199.45,14.31559401]
[1756752684577,0.03,199.46,199.45,13.59559401]
[1756752684801,0.71,199.46,199.45,13.59559401]
[1756752685174,0.03,199.46,199.45,13.59559401]
[1756752686794,0.03,199.46,199.45,14.31559401]
[1756752689572,0.03,199.46,199.45,13.59559401]
[1756752690774,0.03,199.46,199.45,52.37559401]
[1756752693079,0.03,199.46,199.45,13.59559401]
[1756752693394,0.03,199.46,199.45,52.57559401]
[1756752694197,0.03,199.46,199.45,52.59559401]
[1756752694672,4.13253132,199.5,199.45,52.59559401]
[1756752694876,4.81253132,199.5,199.45,52.59559401]
[1756752695692,0.68,199.5,199.45,56.10771175]
[1756752695993,0.68,199.5,199.47,13.59559401]
[1756752696174,0.68,199.5,199.48,38.76]
[1756752696576,0.68,199.5,199.47,13.59559401]
[1756752696787,0.68,199.5,199.48,38.76]
[1756752696989,3.35877601,199.51,199.49,13.59559401]
[1756752697382,3.35877601,199.51,199.49,52.35559401]
[1756752697805,5.01253132,199.5,199.49,52.35559401]
[1756752698107,5.01253132,199.5,199.49,52.33559401]
[1756752700408,5.01202886,199.52,199.49,52.99559401]
[1756752700579,5.01202886,199.52,199.51,13.59559401]
[1756752701291,0.1,199.53,199.5,0.66]
[1756752701292,0.1,199.53,199.5,13.59559401]
[1756752701599,0.1,199.53,199.49,38.74]
[1756752701600,0.1,199.53,199.52,13.59559401]
[1756752702109,0.1,199.53,199.52,0.66]
[1756752708304,0.1,199.53,199.52,39.36]
[1756752709610,0.1,199.53,199.52,52.95559401]
[1756752711206,0.1,199.53,199.52,14.25559401]
[1756752711406,0.1,199.53,199.52,52.95559401]
[1756752724227,0.78,199.53,199.5,80.3]
[1756752724418,5.11177767,199.53,199.51,38.7]
[1756752725008,5.11177767,199.53,199.5,80.42]
[1756752725211,5.11177767,199.53,199.51,38.7]
[1756752725631,5.11177767,199.53,199.51,39.41]
[1756752726136,5.11177767,199.53,199.5,80.42]
[1756752726334,3.36953574,199.52,199.51,38.7]
[1756752726515,5.11177767,199.53,199.51,39.41]
[1756752727619,5.11177767,199.53,199.52,14.30559401]
[1756752727620,0.1,199.53,199.52,14.30559401]
[1756752727828,0.1,199.53,199.52,13.59559401]
[1756752728016,0.1,199.53,199.52,14.30559401]
[1756752728724,5.11177767,199.53,199.52,38.7]
[1756752728920,0.1,199.53,199.52,39.41]
[1756752730445,0.1,199.53,199.52,53.00559401]
[1756752731942,0.1,199.53,199.52,52.29559401]
[1756752732146,5.11177767,199.53,199.52,52.29559401]
[1756752732436,8.48413323,199.53,199.52,52.29559401]
[1756752733844,8.48413323,199.53,199.5,81.13]
[1756752734051,5.11177767,199.53,199.51,38.7]
[1756752734251,3.37386332,199.52,199.51,38.7]
[1756752734926,8.38589218,199.52,199.5,80.42]
[1756752735226,5.01202886,199.52,199.51,38.7]
[1756752735728,5.01202886,199.52,199.5,80.42]
[1756752736254,3.37441109,199.51,199.5,80.42]
[1756752736456,8.38669117,199.51,199.5,119.12]
[1756752736840,8.38669117,199.51,199.5,38.82]
[1756752737036,3.37441109,199.51,199.5,39.53]
[1756752737240,3.37441109,199.51,199.5,38.82]
[1756752737553,8.38669117,199.51,199.5,38.82]
[1756752738654,3.37441109,199.51,199.5,53.12559401]
[1756752738831,0.1,199.53,199.51,13.59559401]
[1756752739152,0.1,199.53,199.52,38.7]
[1756752739336,0.1,199.53,199.52,39.41]
[1756752740436,0.1,199.53,199.52,53.00559401]
[1756752741349,0.1,199.53,199.52,14.30559401]
[1756752741555,3.47441109,199.53,199.52,52.29559401]
[1756752742030,3.47441109,199.53,199.52,53.00559401]
[1756752742234,0.1,199.53,199.52,14.30559401]
[1756752742756,0.1,199.53,199.52,53.00559401]
[1756752742960,0.1,199.53,199.52,14.30559401]
[1756752743156,0.1,199.53,199.52,53.00559401]
[1756752743862,3.04548803,199.55,199.53,13.59559401]
[1756752744152,3.04548803,199.55,199.54,38.7]
[1756752744547,3.04548803,199.55,199.53,14.30559401]
[1756752744733,3.04548803,199.55,199.54,38.7]
[1756752747158,8.05681307,199.55,199.54,38.68]
[1756752747738,8.73681307,199.55,199.51,13.59559401]
[1756752747939,9.32906067,199.55,199.52,38.68]
[1756752748157,10.00906067,199.55,199.52,38.68]
[1756752748462,0.1,199.55,199.53,14.30559401]
[1756752748762,0.1,199.55,199.54,52.98559401]
[1756752748984,0.1,199.55,199.54,57.21771175]
[1756752749147,0.1,199.55,199.54,62.22923826]
[1756752749349,0.1,199.55,199.54,57.99712052]
[1756752749550,0.1,199.55,199.54,62.22923826]
[1756752750450,0.1,199.55,199.54,23.54923826]
[1756752750646,0.1,199.55,199.54,62.22923826]
[1756752752067,0.1,199.55,199.54,52.98559401]
[1756752752260,0.1,199.55,199.54,14.30559401]
[1756752752465,0.1,199.55,199.54,52.98559401]
[1756752753177,0.1,199.55,199.54,14.30559401]
[1756752753377,0.1,199.55,199.54,52.27559401]
[1756752754254,0.1,199.55,199.5,0.12]
[1756752754255,0.1,199.55,199.5,0.83]
[1756752754578,5.11127536,199.55,199.52,13.59559401]
[1756752754754,5.11127536,199.55,199.53,38.68]
[1756752754755,5.79127536,199.55,199.53,38.68]
[1756752755086,5.79127536,199.55,199.54,38.68]
[1756752755777,5.79127536,199.55,199.5,0.12]
[1756752755778,9.16968136,199.55,199.5,0.12]
[1756752756084,7.59614163,199.54,199.5,9.68]
[1756752756292,3.378406,199.53,199.5,9.68]
[1756752756592,4.058406,199.53,199.5,9.68]
[1756752756754,3.378406,199.53,199.5,9.68]
[1756752756954,0.68,199.52,199.5,9.68]
[1756752757475,5.69228008,199.51,199.5,9.68]
[1756752757703,5.69228008,199.51,199.5,0.12]
[1756752757896,8.39068608,199.51,199.5,0.12]
[1756752760583,3.378406,199.51,199.5,39.47]
[1756752760782,3.378406,199.54,199.51,13.59559401]
[1756752760989,3.378406,199.54,199.52,0.67]
[1756752761285,0.1,199.55,199.54,13.59559401]
[1756752761461,0.1,199.55,199.54,14.26559401]
[1756752761882,0.1,199.55,199.54,19.27712052]
[1756752762085,0.1,199.55,199.54,23.50923826]
[1756752763875,0.1,199.55,199.54,52.96559401]
[1756752764476,0.1,199.55,199.54,14.26559401]
[1756752764683,0.1,199.55,199.54,52.29559401]
[1756752764879,0.1,199.55,199.54,13.59559401]
[1756752765094,0.1,199.55,199.54,52.29559401]
[1756752766092,0.1,199.55,199.54,52.96559401]
[1756752766595,0.1,199.55,199.54,57.19771175]
[1756752766971,0.1,199.55,199.54,64.71877591]
[1756752770210,0.1,199.55,199.54,16.77513166]
[1756752770375,0.1,199.55,199.54,54.99397901]
[1756752770697,0.1,199.55,199.54,55.49513166]
[1756752771087,0.1,199.55,199.54,59.7272494]
[1756752771699,0.1,199.55,199.54,64.73877591]
[1756752771878,0.1,199.55,199.54,60.50665817]
[1756752773005,0.1,199.55,199.54,15.60397901]
[1756752773304,0.1,199.55,199.54,54.34397901]
[1756752773493,0.1,199.55,199.54,53.00559401]
[1756752774705,0.1,199.55,199.54,58.01712052]
[1756752776201,0.1,199.55,199.54,58.13712052]
[1756752777107,0.1,199.55,199.54,62.36923826]
[1756752777604,0.1,199.55,199.54,64.37762326]
[1756752778478,0.1,199.55,199.54,144.67762326]
[1756752779104,0.1,199.55,199.54,96.02397901]
[1756752779306,0.1,199.55,199.54,134.72397901]
[1756752780420,0.1,199.55,199.54,94.01559401]
[1756752780732,0.1,199.55,199.54,132.71559401]
[1756752780940,0.1,199.55,199.54,133.38559401]
[1756752781117,0.1,199.55,199.54,138.39712052]
[1756752781446,0.1,199.55,199.54,142.62923826]
[1756752782307,0.1,199.55,199.54,144.63762326]
[1756752787818,0.1,199.55,199.54,159.70762326]
[1756752788022,0.1,199.55,199.54,144.63762326]
[1756752788361,1e-08,199.56,199.54,84.33762326]
[1756752788660,1e-08,199.56,199.55,99.28883928]
[1756752788816,0.34000001,199.66,199.59,13.59559401]
[1756752789145,3.37197868,199.69,199.63,17.82771175]
[1756752789337,5.00727331,199.71,199.65,13.59559401]
[1756752789338,3.37197868,199.7,199.65,13.59559401]
[1756752789643,3.37197868,199.7,199.66,38.72]
[1756752790276,8.37951621,199.7,199.67,13.59559401]
[1756752790552,3.37197868,199.69,199.68,52.97559401]
[1756752790727,3.37197868,199.71,199.69,13.59559401]
[1756752790916,0.34,199.71,199.69,13.59559401]
[1756752791116,3.71197868,199.71,199.7,38.72]
[1756752791316,3.37197868,199.71,199.7,38.72]
[1756752791548,5.00704856,199.72,199.7,38.72]
[1756752791948,5.34704856,199.72,199.7,38.72]
[1756752792140,3.36572237,199.71,199.66,15.714573]
[1756752792347,3.70397099,199.71,199.67,52.31559401]
[1756752793057,3.36397099,199.71,199.67,52.31559401]
[1756752793552,8.37123298,199.71,199.67,52.97559401]
[1756752793725,12.85537094,199.76,199.68,0.66]
[1756752793921,8.36892851,199.75,199.69,38.72]
[1756752794130,3.36267069,199.74,199.69,38.72]
[1756752794365,3.70267069,199.74,199.69,38.72]
[1756752794548,3.36267069,199.74,199.69,39.38]
[1756752794731,0.03,199.7,199.69,52.97559401]
[1756752795162,0.03,199.7,199.69,52.31559401]
[1756752795367,0.03,199.7,199.69,13.59559401]
[1756752795580,0.03,199.7,199.69,52.31559401]
[1756752799266,0.03,199.7,199.69,13.59559401]
[1756752799439,0.03,199.7,199.69,52.29559401]
[1756752800562,0.03,199.7,199.69,38.7]
[1756752802654,0.03,199.7,199.69,39.36]
[1756752805544,0.03,199.7,199.69,0.66]
[1756752805751,0.03,199.7,199.69,39.34]
[1756752809675,0.03,199.7,199.69,52.93559401]
[1756752810265,0.03,199.7,199.69,52.25559401]
[1756752811679,0.03,199.7,199.69,13.59559401]
[1756752811864,0.37,199.7,199.67,13.59559401]
[1756752812068,0.37,199.7,199.68,38.66]
[1756752812267,0.03,199.7,199.68,38.66]
[1756752812465,0.03,199.7,199.66,80.96]
[1756752812660,0.03,199.7,199.67,38.66]
[1756752814583,0.03,199.7,199.66,80.42]
[1756752814972,0.34,199.69,199.67,38.66]
[1756752815296,26.34,199.68,199.66,0.12]
[1756752815483,3.35908509,199.67,199.64,0.12]
[1756752815973,0.34,199.66,199.64,0.12]
[1756752816160,0.34,199.65,199.64,0.12]
[1756752816573,5.34876533,199.65,199.64,0.12]
[1756752816991,8.36785042,199.65,199.64,0.12]
[1756752817493,8.70785042,199.65,199.64,0.12]
[1756752817883,8.70785042,199.65,199.62,0.12]
[1756752818078,26.0,199.63,199.62,1e-08]
[1756752818272,29.35908509,199.63,199.62,1e-08]
[1756752818474,29.69908509,199.63,199.62,1e-08]
[1756752818673,34.70835223,199.63,199.62,1e-08]
[1756752820083,34.70835223,199.63,199.54,29.62]
[1756752820084,92.27785581,199.63,199.54,0.12]
[1756752820281,26.0,199.59,199.54,0.12]
[1756752820497,3.35908509,199.58,199.54,0.12]
[1756752820695,5.01077316,199.57,199.54,0.12]
[1756752821003,3.35908509,199.56,199.54,0.12]
[1756752821984,3.69908509,199.56,199.54,0.12]
[1756752822473,3.35908509,199.56,199.54,0.12]
[1756752822672,5.01127536,199.55,199.54,0.12]
[1756752825972,5.35127536,199.55,199.54,1e-08]
[1756752826174,8.70677819,199.55,199.54,1e-08]
[1756752827207,5.35127536,199.55,199.54,1e-08]
[1756752828776,44.03127536,199.55,199.54,1e-08]
[1756752830075,5.35127536,199.55,199.54,1e-08]
[1756752830286,44.03127536,199.55,199.54,1e-08]
[1756752830507,44.06127536,199.55,199.54,1e-08]
[1756752831099,43.72127536,199.55,199.54,1e-08]
[1756752831475,44.06127536,199.55,199.54,1e-08]
[1756752832570,43.72127536,199.55,199.54,1e-08]
[1756752834802,43.74127536,199.55,199.54,1e-08]
[1756752836011,44.08127536,199.55,199.54,1e-08]
[1756752836789,44.08127536,199.55,199.52,1e-08]
[1756752836790,26.0,199.53,199.52,1e-08]
[1756752836979,26.0,199.53,199.48,0.12]
[1756752836980,64.7,199.53,199.48,0.12]
[1756752837185,0.34,199.52,199.48,0.12]
[1756752837393,26.0,199.49,199.48,0.78]
[1756752837790,26.0,199.49,199.48,0.12]
[1756752837990,31.01278259,199.49,199.48,0.12]
[1756752838498,69.71278259,199.49,199.48,0.12]
[1756752839080,12.53051166,199.52,199.48,0.12]
[1756752839281,0.03,199.55,199.49,38.82]
[1756752839480,0.03,199.55,199.54,17.82771175]
[1756752840002,0.03,199.55,199.54,49.49923826]
[1756752840204,0.03,199.55,199.54,23.49923826]
[1756752840506,0.03,199.55,199.54,21.77645617]
[1756752840687,0.03,199.55,199.54,26.00857391]
[1756752841004,0.03,199.55,199.54,64.92857391]
[1756752841703,0.03,199.55,199.54,64.90857391]
[1756752842387,0.03,199.59,199.56,43.82771175]
[1756752842588,0.03,199.59,199.56,44.32881417]
[1756752842839,0.03,199.59,199.56,44.98881417]
[1756752842996,0.03,199.59,199.56,83.88881417]
[1756752843504,0.03,199.59,199.56,88.87983842]
[1756752843810,0.03,199.59,199.56,45.76772068]
[1756752844012,0.03,199.59,199.56,57.36771175]
[1756752844392,0.03,199.59,199.56,53.13559401]
[1756752844687,0.03,199.59,199.56,62.378736]
[1756752845209,0.03,199.59,199.56,62.87983842]
[1756752845415,0.03,199.59,199.58,18.6061161]
[1756752845611,0.03,199.59,199.58,23.33928604]
[1756752845784,0.03,199.59,199.58,24.00928604]
[1756752846714,0.03,199.59,199.58,58.1961161]
[1756752846909,0.03,199.59,199.58,62.42823384]
[1756752848529,0.03,199.59,199.58,24.00928604]
[1756752848699,0.03,199.59,199.58,62.90928604]
[1756752849733,0.03,199.59,199.58,67.91755004]
[1756752850517,0.03,199.59,199.58,148.21755004]
[1756752850698,0.03,199.59,199.58,147.71649784]
[1756752854250,0.03,199.59,199.58,108.81649784]
[1756752854424,0.03,199.59,199.58,147.65649784]
[1756752855316,0.03,199.61,199.6,43.82771175]
[1756752855641,0.03,199.61,199.6,141.70083149]
[1756752855813,0.03,199.61,199.6,141.86982949]
[1756752856520,0.03,199.61,199.6,143.87720649]
[1756752857143,0.03,199.61,199.6,148.88722653]
[1756752857525,0.03,199.61,199.6,110.04722653]
[1756752857735,0.03,199.61,199.6,148.88722653]
[1756752860319,0.03,199.63,199.6,148.88722653]
[1756752860618,0.03,199.63,199.62,43.82771175]
[1756752860822,0.03,199.63,199.62,56.62771175]
[1756752861049,0.03,199.63,199.62,57.29771175]
[1756752861422,0.03,199.63,199.62,62.30722983]